[Event "Late-Titled-Tuesday-Blitz-January-30-2024"]
[Site "Chess.com"]
[Date "2024.01.30"]
[Round "6"]
[White "chegueps"]
[Black "ImportedItalianMaple"]
[Result "0-1"]
[WhiteElo "2596"]
[BlackElo "2485"]
[TimeControl "180+1"]
[EndTime "15:07:50 PST"]
[Termination "ImportedItalianMaple won by checkmate"]

1. d4 {[%clk 0:03:00.9]} 1... g6 {[%clk 0:02:56.8]} 2. Nf3 {[%clk 0:03:01.3]}
2... Bg7 {[%clk 0:02:56.8]} 3. g3 {[%clk 0:03:01.7]} 3... Nf6 {[%clk 0:02:52]}
4. Bg2 {[%clk 0:03:02.6]} 4... O-O {[%clk 0:02:52.3]} 5. O-O {[%clk 0:03:03.5]}
5... d6 {[%clk 0:02:44.6]} 6. c3 {[%clk 0:03:04.4]} 6... c5 {[%clk 0:02:44.5]}
7. a4 {[%clk 0:03:04.4]} 7... Nc6 {[%clk 0:02:43.2]} 8. d5 {[%clk 0:03:03.8]}
8... Ne5 {[%clk 0:02:42.9]} 9. Nxe5 {[%clk 0:03:03.8]} 9... dxe5 {[%clk
0:02:43.8]} 10. c4 {[%clk 0:03:04.6]} 10... e6 {[%clk 0:02:42.2]} 11. Nc3 {[%clk
0:03:04]} 11... exd5 {[%clk 0:02:40.1]} 12. cxd5 {[%clk 0:03:04.9]} 12... Ne8
{[%clk 0:02:39.8]} 13. e4 {[%clk 0:03:05.2]} 13... Nd6 {[%clk 0:02:39.9]} 14.
Be3 {[%clk 0:03:03.5]} 14... b6 {[%clk 0:02:36]} 15. a5 {[%clk 0:03:03.9]} 15...
Ba6 {[%clk 0:02:31.3]} 16. Re1 {[%clk 0:03:02.8]} 16... Nc4 {[%clk 0:02:28.6]}
17. axb6 {[%clk 0:03:02.6]} 17... Nxe3 {[%clk 0:02:24.1]} 18. Rxe3 {[%clk
0:03:03.5]} 18... axb6 {[%clk 0:02:24.4]} 19. Bf1 {[%clk 0:03:02.6]} 19... Bb7
{[%clk 0:02:15.6]} 20. Nb5 {[%clk 0:02:59.4]} 20... Rxa1 {[%clk 0:02:09.2]} 21.
Qxa1 {[%clk 0:02:59.2]} 21... f5 {[%clk 0:02:09.8]} 22. Bc4 {[%clk 0:02:41.8]}
22... f4 {[%clk 0:02:06]} 23. Rf3 {[%clk 0:02:35]} 23... g5 {[%clk 0:02:01.4]}
24. Qb1 {[%clk 0:02:34.7]} 24... g4 {[%clk 0:01:58.7]} 25. Ra3 {[%clk
0:02:32.5]} 25... Qf6 {[%clk 0:01:32.7]} 26. Qe1 {[%clk 0:02:25.4]} 26... Kh8
{[%clk 0:01:29.4]} 27. Ra7 {[%clk 0:02:24.7]} 27... Bc8 {[%clk 0:01:27.8]} 28.
Ra8 {[%clk 0:02:21.9]} 28... Bd7 {[%clk 0:01:22.1]} 29. Rxf8+ {[%clk 0:02:21.2]}
29... Bxf8 {[%clk 0:01:21.2]} 30. Qd2 {[%clk 0:02:19]} 30... h5 {[%clk
0:01:18.1]} 31. Nc3 {[%clk 0:01:59.3]} 31... h4 {[%clk 0:01:16.6]} 32. gxh4
{[%clk 0:01:50.7]} 32... Qxh4 {[%clk 0:01:15.2]} 33. Ne2 {[%clk 0:01:47.7]}
33... b5 {[%clk 0:00:51.6]} 34. Qc3 {[%clk 0:01:30.3]} 34... Bd6 {[%clk
0:00:24.3]} 35. Nxf4 {[%clk 0:01:28.7]} 35... Qg5 {[%clk 0:00:17.2]} 36. Nd3
{[%clk 0:00:58]} 36... bxc4 {[%clk 0:00:15.7]} 37. Qxc4 {[%clk 0:00:58.9]} 37...
Kg7 {[%clk 0:00:13.8]} 38. Qa6 {[%clk 0:00:58.2]} 38... Qf6 {[%clk 0:00:13]} 39.
Qb7 {[%clk 0:00:55.6]} 39... Qe7 {[%clk 0:00:12.3]} 40. Kg2 {[%clk 0:00:52.9]}
40... Kf6 {[%clk 0:00:12.7]} 41. Qb6 {[%clk 0:00:49.5]} 41... Kg5 {[%clk
0:00:12.7]} 42. Qa5 {[%clk 0:00:49.9]} 42... Qf6 {[%clk 0:00:12.1]} 43. Qd2+
{[%clk 0:00:47.9]} 43... Kh5 {[%clk 0:00:12.4]} 44. Ne1 {[%clk 0:00:47.3]} 44...
c4 {[%clk 0:00:11.9]} 45. Qa5 {[%clk 0:00:45.8]} 45... Qf4 {[%clk 0:00:10.1]}
46. Qd8 {[%clk 0:00:42.4]} 46... Qxe4+ {[%clk 0:00:10.1]} 47. Kf1 {[%clk
0:00:43.3]} 47... Bb5 {[%clk 0:00:06.7]} 48. Qh8+ {[%clk 0:00:42.4]} 48... Kg5
{[%clk 0:00:05.6]} 49. Qg7+ {[%clk 0:00:42]} 49... Qg6 {[%clk 0:00:05.3]} 50.
Qb7 {[%clk 0:00:42.5]} 50... Qe8 {[%clk 0:00:03.1]} 51. Qb6 {[%clk 0:00:41.7]}
51... c3+ {[%clk 0:00:03.6]} 52. Kg2 {[%clk 0:00:40.6]} 52... cxb2 {[%clk
0:00:04.2]} 53. h4+ {[%clk 0:00:39.3]} 53... gxh3+ {[%clk 0:00:03.6]} 54. Kg3
{[%clk 0:00:38.7]} 54... b1=Q {[%clk 0:00:04.5]} 55. Nf3+ {[%clk 0:00:39.2]}
55... Kf5 {[%clk 0:00:04.2]} 56. Qxd6 {[%clk 0:00:40.1]} 56... Qe4 {[%clk
0:00:04.2]} 57. Nh4+ {[%clk 0:00:37.7]} 57... Qxh4+ {[%clk 0:00:03.7]} 58. Kxh4
{[%clk 0:00:37.9]} 58... Qh8+ {[%clk 0:00:03.7]} 59. Kg3 {[%clk 0:00:38.1]}
59... Qg7+ {[%clk 0:00:03.7]} 60. Kf3 {[%clk 0:00:34.1]} 60... Qg4+ {[%clk
0:00:03.6]} 61. Ke3 {[%clk 0:00:34.8]} 61... Qd4+ {[%clk 0:00:03.7]} 62. Kf3
{[%clk 0:00:34.8]} 62... Qf4# {[%clk 0:00:03.8]} 0-1

[Event "Late-Titled-Tuesday-Blitz-January-30-2024"]
[Site "Chess.com"]
[Date "2024.01.30"]
[Round "6"]
[White "shirovin"]
[Black "Navyblue1"]
[Result "1-0"]
[WhiteElo "2051"]
[BlackElo "2146"]
[TimeControl "180+1"]
[EndTime "15:07:50 PST"]
[Termination "shirovin won on time"]

1. e4 {[%clk 0:03:00.9]} 1... c5 {[%clk 0:02:58.4]} 2. Nf3 {[%clk 0:02:59.7]}
2... d6 {[%clk 0:02:57.8]} 3. c4 {[%clk 0:02:58.8]} 3... Nc6 {[%clk 0:02:56.1]}
4. d4 {[%clk 0:02:58.3]} 4... cxd4 {[%clk 0:02:52]} 5. Nxd4 {[%clk 0:02:58.7]}
5... g6 {[%clk 0:02:52.5]} 6. Be3 {[%clk 0:02:56.5]} 6... Bg7 {[%clk 0:02:53]}
7. Nc3 {[%clk 0:02:55.7]} 7... Nf6 {[%clk 0:02:51.5]} 8. Be2 {[%clk 0:02:51.5]}
8... O-O {[%clk 0:02:50.5]} 9. O-O {[%clk 0:02:50]} 9... Bd7 {[%clk 0:02:49.8]}
10. f3 {[%clk 0:02:49.8]} 10... Nxd4 {[%clk 0:02:24.1]} 11. Bxd4 {[%clk
0:02:49.1]} 11... b6 {[%clk 0:02:24.4]} 12. Qd2 {[%clk 0:02:47]} 12... Rc8
{[%clk 0:02:24.7]} 13. b3 {[%clk 0:02:45.5]} 13... Ne8 {[%clk 0:02:22.5]} 14.
Bxg7 {[%clk 0:02:33.1]} 14... Nxg7 {[%clk 0:02:23.4]} 15. Rfd1 {[%clk 0:02:32]}
15... Bc6 {[%clk 0:02:19.4]} 16. e5 {[%clk 0:02:31.2]} 16... dxe5 {[%clk
0:01:52.4]} 17. Qe3 {[%clk 0:02:16.3]} 17... Qc7 {[%clk 0:01:51.3]} 18. Nd5
{[%clk 0:02:15.1]} 18... Bxd5 {[%clk 0:01:50.7]} 19. cxd5 {[%clk 0:02:15.3]}
19... Qc5 {[%clk 0:01:50.9]} 20. Kf2 {[%clk 0:02:01.1]} 20... Ne8 {[%clk
0:01:42.2]} 21. Rac1 {[%clk 0:01:50.5]} 21... Qxe3+ {[%clk 0:01:39.1]} 22. Kxe3
{[%clk 0:01:49.7]} 22... Nd6 {[%clk 0:01:39.4]} 23. Ba6 {[%clk 0:01:46.1]} 23...
Ra8 {[%clk 0:01:01.6]} 24. g4 {[%clk 0:01:40.9]} 24... Rfb8 {[%clk 0:00:54.1]}
25. Rc7 {[%clk 0:01:37.6]} 25... b5 {[%clk 0:00:49.8]} 26. a4 {[%clk 0:01:25.8]}
26... bxa4 {[%clk 0:00:35.9]} 27. bxa4 {[%clk 0:01:25]} 27... Rb4 {[%clk
0:00:33.3]} 28. Rxe7 {[%clk 0:01:19.5]} 28... Rxa4 {[%clk 0:00:32.9]} 29. Be2
{[%clk 0:01:16]} 29... Ra3+ {[%clk 0:00:23.2]} 30. Kf2 {[%clk 0:01:15.4]} 30...
Rb8 {[%clk 0:00:19.9]} 31. Rd7 {[%clk 0:01:14.8]} 31... Ne8 {[%clk 0:00:16.9]}
32. d6 {[%clk 0:01:11.4]} 32... Ra2 {[%clk 0:00:17]} 33. Kf1 {[%clk 0:00:50.7]}
33... Rc2 {[%clk 0:00:14.6]} 34. Re7 {[%clk 0:00:46.7]} 34... Rd8 {[%clk
0:00:13.2]} 35. d7 {[%clk 0:00:44.7]} 35... Nc7 {[%clk 0:00:12.9]} 36. Rxe5
{[%clk 0:00:39.8]} 36... Kf8 {[%clk 0:00:12.6]} 37. Ra5 {[%clk 0:00:39]} 37...
Rc6 {[%clk 0:00:09.6]} 38. Rxa7 {[%clk 0:00:37.8]} 38... Ke7 {[%clk 0:00:09.6]}
39. Ra4 {[%clk 0:00:17.4]} 39... Rd6 {[%clk 0:00:07.8]} 40. Re4+ {[%clk
0:00:15.8]} 40... Re6 {[%clk 0:00:07]} 41. Red4 {[%clk 0:00:15.7]} 41... Na8
{[%clk 0:00:03.7]} 42. Bc4 {[%clk 0:00:14.9]} 42... Rf6 {[%clk 0:00:03.1]} 43.
Re4+ {[%clk 0:00:14.3]} 43... Kf8 {[%clk 0:00:02.7]} 44. Bb5 {[%clk 0:00:13.6]}
44... Nc7 {[%clk 0:00:02.6]} 45. Ba4 {[%clk 0:00:12.6]} 45... Ra6 {[%clk
0:00:02.3]} 46. Rde1 {[%clk 0:00:10.2]} 46... Raa8 {[%clk 0:00:01.3]} 47. Bc6
{[%clk 0:00:07.6]} 1-0

[Event "Late-Titled-Tuesday-Blitz-January-30-2024"]
[Site "Chess.com"]
[Date "2024.01.30"]
[Round "6"]
[White "ElephantChessGenius"]
[Black "bn1462"]
[Result "1-0"]
[WhiteElo "2245"]
[BlackElo "1958"]
[TimeControl "180+1"]
[EndTime "15:07:54 PST"]
[Termination "ElephantChessGenius won on time"]

1. e4 {[%clk 0:03:00.4]} 1... c5 {[%clk 0:02:59.7]} 2. Nc3 {[%clk 0:02:58.6]}
2... Nc6 {[%clk 0:02:59.4]} 3. Bb5 {[%clk 0:02:57.3]} 3... Nd4 {[%clk
0:02:58.5]} 4. Nf3 {[%clk 0:02:55.7]} 4... g6 {[%clk 0:02:53.4]} 5. O-O {[%clk
0:02:49.8]} 5... Bg7 {[%clk 0:02:53.6]} 6. Nxd4 {[%clk 0:02:39.7]} 6... cxd4
{[%clk 0:02:51.8]} 7. Ne2 {[%clk 0:02:39.1]} 7... a6 {[%clk 0:02:42.3]} 8. Bd3
{[%clk 0:02:39.1]} 8... Nf6 {[%clk 0:02:21.2]} 9. Nxd4 {[%clk 0:02:34]} 9...
Nxe4 {[%clk 0:02:21.2]} 10. Bxe4 {[%clk 0:02:31.9]} 10... Bxd4 {[%clk 0:02:20]}
11. c3 {[%clk 0:02:32.3]} 11... Bg7 {[%clk 0:02:19.3]} 12. d4 {[%clk 0:02:32.1]}
12... d5 {[%clk 0:02:17.5]} 13. Bf3 {[%clk 0:02:32]} 13... O-O {[%clk
0:02:17.9]} 14. Qb3 {[%clk 0:02:31.5]} 14... e6 {[%clk 0:01:59.3]} 15. Bf4
{[%clk 0:02:20]} 15... b5 {[%clk 0:01:46.5]} 16. a4 {[%clk 0:02:07.2]} 16... Bd7
{[%clk 0:01:44.4]} 17. axb5 {[%clk 0:02:00.9]} 17... axb5 {[%clk 0:01:44.4]} 18.
Be2 {[%clk 0:02:00.8]} 18... Qb6 {[%clk 0:01:39.4]} 19. Qb4 {[%clk 0:01:58.7]}
19... Rfc8 {[%clk 0:01:29.8]} 20. Bd6 {[%clk 0:01:43.9]} 20... Bf8 {[%clk
0:01:07.4]} 21. Bxf8 {[%clk 0:01:39.6]} 21... Rxf8 {[%clk 0:01:08.3]} 22. h4
{[%clk 0:01:27.6]} 22... h5 {[%clk 0:01:02.5]} 23. g3 {[%clk 0:01:25.6]} 23...
Rfc8 {[%clk 0:01:01.2]} 24. Kg2 {[%clk 0:01:25]} 24... Kg7 {[%clk 0:00:59.3]}
25. Qe7 {[%clk 0:01:18.7]} 25... Bc6 {[%clk 0:00:30.3]} 26. Qd6 {[%clk 0:01:06]}
26... Rcb8 {[%clk 0:00:14.8]} 27. Qb4 {[%clk 0:00:53.1]} 27... Be8 {[%clk
0:00:12.9]} 28. Bd3 {[%clk 0:00:51.7]} 28... Ra4 {[%clk 0:00:12.1]} 29. Qe7
{[%clk 0:00:46.5]} 29... Rba8 {[%clk 0:00:07.9]} 30. Rae1 {[%clk 0:00:45.3]}
30... Qa7 {[%clk 0:00:04.9]} 31. Qg5 {[%clk 0:00:41.7]} 31... b4 {[%clk
0:00:04.9]} 32. Qe5+ {[%clk 0:00:32]} 32... Kg8 {[%clk 0:00:04]} 33. Qf6 {[%clk
0:00:26.5]} 33... bxc3 {[%clk 0:00:03.4]} 34. bxc3 {[%clk 0:00:25.8]} 34... Ra3
{[%clk 0:00:03.8]} 35. Rc1 {[%clk 0:00:07.8]} 35... Qc7 {[%clk 0:00:04]} 36.
Rfe1 {[%clk 0:00:07.7]} 36... Rxc3 {[%clk 0:00:03.6]} 37. Rxc3 {[%clk
0:00:07.1]} 37... Qxc3 {[%clk 0:00:04]} 38. Re3 {[%clk 0:00:05.3]} 38... Qc7
{[%clk 0:00:03.1]} 39. Re5 {[%clk 0:00:04.3]} 39... Rc8 {[%clk 0:00:02.3]} 40.
Rg5 {[%clk 0:00:02.1]} 40... Qd8 {[%clk 0:00:01.5]} 41. Qf4 {[%clk 0:00:02]}
41... Qe7 {[%clk 0:00:01.1]} 42. Qe3 {[%clk 0:00:01.9]} 1-0

[Event "Late-Titled-Tuesday-Blitz-January-30-2024"]
[Site "Chess.com"]
[Date "2024.01.30"]
[Round "6"]
[White "rdarruda"]
[Black "PapaieDudu"]
[Result "0-1"]
[WhiteElo "2536"]
[BlackElo "2411"]
[TimeControl "180+1"]
[EndTime "15:07:56 PST"]
[Termination "PapaieDudu won on time"]

1. d4 {[%clk 0:03:00.9]} 1... d5 {[%clk 0:02:59.4]} 2. Nf3 {[%clk 0:02:58.2]}
2... Nf6 {[%clk 0:02:59.5]} 3. c4 {[%clk 0:02:58]} 3... dxc4 {[%clk 0:02:57.5]}
4. e3 {[%clk 0:02:57.9]} 4... a6 {[%clk 0:02:56.6]} 5. a4 {[%clk 0:02:56.6]}
5... c5 {[%clk 0:02:56.8]} 6. Bxc4 {[%clk 0:02:54.8]} 6... e6 {[%clk 0:02:50.7]}
7. O-O {[%clk 0:02:52.8]} 7... Be7 {[%clk 0:02:51]} 8. Nc3 {[%clk 0:02:52.2]}
8... O-O {[%clk 0:02:50.6]} 9. e4 {[%clk 0:02:51.3]} 9... cxd4 {[%clk
0:02:50.2]} 10. Nxd4 {[%clk 0:02:51.8]} 10... Qc7 {[%clk 0:02:49.7]} 11. Qe2
{[%clk 0:02:48.9]} 11... Rd8 {[%clk 0:02:48]} 12. Be3 {[%clk 0:02:47]} 12... Bc5
{[%clk 0:02:40.1]} 13. Rfd1 {[%clk 0:02:41.6]} 13... Bd7 {[%clk 0:02:11.8]} 14.
Rac1 {[%clk 0:02:39.2]} 14... Qb6 {[%clk 0:02:05.8]} 15. a5 {[%clk 0:02:29.8]}
15... Qa7 {[%clk 0:02:04.7]} 16. b4 {[%clk 0:02:26.2]} 16... e5 {[%clk
0:01:42.4]} 17. bxc5 {[%clk 0:02:04.5]} 17... exd4 {[%clk 0:01:39.8]} 18. Bxd4
{[%clk 0:02:04.2]} 18... Ne8 {[%clk 0:01:27.2]} 19. Qh5 {[%clk 0:01:49.5]} 19...
Be6 {[%clk 0:01:23.2]} 20. Bxe6 {[%clk 0:01:30.5]} 20... fxe6 {[%clk 0:01:23.2]}
21. Bxg7 {[%clk 0:01:15.9]} 21... Nc6 {[%clk 0:01:11.4]} 22. Bh6 {[%clk
0:01:06.9]} 22... Ne7 {[%clk 0:01:05.8]} 23. Qg5+ {[%clk 0:00:56.3]} 23... Kf7
{[%clk 0:01:00.8]} 24. Qf4+ {[%clk 0:00:42.7]} 24... Kg6 {[%clk 0:00:58]} 25.
Qg5+ {[%clk 0:00:28]} 25... Kf7 {[%clk 0:00:56.1]} 26. Ne2 {[%clk 0:00:25.4]}
26... Rxd1+ {[%clk 0:00:54.6]} 27. Rxd1 {[%clk 0:00:24.8]} 27... Ng6 {[%clk
0:00:41.3]} 28. Nf4 {[%clk 0:00:24.2]} 28... b5 {[%clk 0:00:32.8]} 29. Nxg6
{[%clk 0:00:19.5]} 29... hxg6 {[%clk 0:00:33.2]} 30. Qf4+ {[%clk 0:00:18.4]}
30... Kg8 {[%clk 0:00:32.2]} 31. Qf8+ {[%clk 0:00:18.3]} 31... Kh7 {[%clk
0:00:32.9]} 32. Bg5 {[%clk 0:00:13.4]} 32... Ng7 {[%clk 0:00:29.3]} 33. Qf4
{[%clk 0:00:09.4]} 33... Qxc5 {[%clk 0:00:28.8]} 34. Qh4+ {[%clk 0:00:09.2]}
34... Kg8 {[%clk 0:00:29.2]} 35. Bf6 {[%clk 0:00:09.2]} 35... Nh5 {[%clk
0:00:29.5]} 36. Qg4 {[%clk 0:00:08.4]} 36... Kf7 {[%clk 0:00:23.9]} 37. Bg5
{[%clk 0:00:07.4]} 37... Qc6 {[%clk 0:00:18.8]} 38. Qf3+ {[%clk 0:00:06]} 38...
Kg7 {[%clk 0:00:18.6]} 39. g4 {[%clk 0:00:04.1]} 39... Rf8 {[%clk 0:00:16.9]}
40. Qe3 {[%clk 0:00:04.3]} 40... Nf6 {[%clk 0:00:15.7]} 41. Qd4 {[%clk
0:00:03.4]} 41... Rf7 {[%clk 0:00:14.9]} 42. Bxf6+ {[%clk 0:00:03.3]} 42... Kh6
{[%clk 0:00:15.3]} 43. g5+ {[%clk 0:00:04.2]} 43... Kh5 {[%clk 0:00:15.9]} 44.
Rd3 {[%clk 0:00:03.5]} 44... Qc1+ {[%clk 0:00:15.7]} 45. Kg2 {[%clk 0:00:03.8]}
45... Qf4 {[%clk 0:00:13.6]} 46. Rh3+ {[%clk 0:00:03.6]} 46... Kg4 {[%clk
0:00:14.3]} 47. Rg3+ {[%clk 0:00:03.9]} 47... Kh4 {[%clk 0:00:15]} 48. Qd1
{[%clk 0:00:03.9]} 48... Qxe4+ {[%clk 0:00:11.6]} 49. Kg1 {[%clk 0:00:03.1]}
49... Qf5 {[%clk 0:00:11]} 50. Qf1 {[%clk 0:00:02]} 50... Rxf6 {[%clk
0:00:10.4]} 51. gxf6 {[%clk 0:00:01.1]} 51... g5 {[%clk 0:00:11]} 0-1

[Event "Late-Titled-Tuesday-Blitz-January-30-2024"]
[Site "Chess.com"]
[Date "2024.01.30"]
[Round "6"]
[White "guillembaches"]
[Black "TheAlienParty"]
[Result "0-1"]
[WhiteElo "2516"]
[BlackElo "2394"]
[TimeControl "180+1"]
[EndTime "15:07:56 PST"]
[Termination "TheAlienParty won by checkmate"]

1. e4 {[%clk 0:03:00.9]} 1... e5 {[%clk 0:02:55.3]} 2. Nf3 {[%clk 0:03:01]} 2...
Nc6 {[%clk 0:02:55.4]} 3. Nc3 {[%clk 0:03:01.6]} 3... Bb4 {[%clk 0:02:53.3]} 4.
Nd5 {[%clk 0:02:56.6]} 4... Be7 {[%clk 0:02:30.1]} 5. Bc4 {[%clk 0:02:53.6]}
5... Nf6 {[%clk 0:02:29.3]} 6. Nxe7 {[%clk 0:02:52.7]} 6... Qxe7 {[%clk
0:02:28.5]} 7. d3 {[%clk 0:02:52.6]} 7... h6 {[%clk 0:02:25.6]} 8. c3 {[%clk
0:02:49.7]} 8... d6 {[%clk 0:02:24.1]} 9. h3 {[%clk 0:02:47.9]} 9... a6 {[%clk
0:02:23.5]} 10. a4 {[%clk 0:02:46.9]} 10... Be6 {[%clk 0:02:22.9]} 11. Bxe6
{[%clk 0:02:41.6]} 11... fxe6 {[%clk 0:02:14.2]} 12. O-O {[%clk 0:02:38.7]}
12... O-O {[%clk 0:02:12.9]} 13. Re1 {[%clk 0:02:34.4]} 13... Qf7 {[%clk
0:02:01.9]} 14. b4 {[%clk 0:02:29.7]} 14... Nh5 {[%clk 0:01:58.9]} 15. Be3
{[%clk 0:02:23.2]} 15... Nf4 {[%clk 0:01:58.3]} 16. Rb1 {[%clk 0:02:05.8]} 16...
Nxh3+ {[%clk 0:01:50.5]} 17. gxh3 {[%clk 0:02:01.4]} 17... Qxf3 {[%clk
0:01:47.3]} 18. Qxf3 {[%clk 0:02:01.5]} 18... Rxf3 {[%clk 0:01:46.5]} 19. Kg2
{[%clk 0:02:01.6]} 19... Rff8 {[%clk 0:01:30]} 20. b5 {[%clk 0:02:01.7]} 20...
axb5 {[%clk 0:01:29]} 21. axb5 {[%clk 0:02:01.7]} 21... Ne7 {[%clk 0:01:26.9]}
22. b6 {[%clk 0:01:57.3]} 22... c6 {[%clk 0:01:26.4]} 23. Ra1 {[%clk 0:01:56.2]}
23... Ng6 {[%clk 0:01:22.2]} 24. c4 {[%clk 0:01:35.3]} 24... Nh4+ {[%clk
0:01:16.7]} 25. Kf1 {[%clk 0:01:33.9]} 25... g5 {[%clk 0:01:11.7]} 26. Ke2
{[%clk 0:01:31.4]} 26... Kg7 {[%clk 0:01:10.4]} 27. Ra7 {[%clk 0:01:29.9]} 27...
Rab8 {[%clk 0:01:06]} 28. Rea1 {[%clk 0:01:22]} 28... Kg6 {[%clk 0:01:01.9]} 29.
R1a5 {[%clk 0:01:16.2]} 29... c5 {[%clk 0:00:58]} 30. Ra1 {[%clk 0:01:10.9]}
30... Nf3 {[%clk 0:00:53.1]} 31. Rh1 {[%clk 0:01:00.1]} 31... Nd4+ {[%clk
0:00:52.9]} 32. Kd2 {[%clk 0:00:56]} 32... Nc6 {[%clk 0:00:50]} 33. Ra3 {[%clk
0:00:54.6]} 33... Ra8 {[%clk 0:00:48.4]} 34. Rha1 {[%clk 0:00:54.4]} 34... Rxa3
{[%clk 0:00:46.1]} 35. Rxa3 {[%clk 0:00:54.8]} 35... Kh5 {[%clk 0:00:46.2]} 36.
Ke2 {[%clk 0:00:50.4]} 36... Kh4 {[%clk 0:00:46.1]} 37. Ra1 {[%clk 0:00:50.3]}
37... Rh8 {[%clk 0:00:23.4]} 38. Kd2 {[%clk 0:00:42.8]} 38... Kxh3 {[%clk
0:00:21.1]} 39. Bxg5 {[%clk 0:00:37]} 39... Kg2 {[%clk 0:00:21.1]} 40. Bf6
{[%clk 0:00:15.8]} 40... Rf8 {[%clk 0:00:20.3]} 41. Bh4 {[%clk 0:00:16.1]} 41...
h5 {[%clk 0:00:18.2]} 42. Ke3 {[%clk 0:00:16.2]} 42... Rg8 {[%clk 0:00:14.7]}
43. Ra2 {[%clk 0:00:14]} 43... Kh3 {[%clk 0:00:13.7]} 44. Bf6 {[%clk 0:00:11.6]}
44... h4 {[%clk 0:00:13.8]} 45. f3 {[%clk 0:00:11.4]} 45... Rf8 {[%clk
0:00:13.6]} 46. Bg5 {[%clk 0:00:11.3]} 46... Rg8 {[%clk 0:00:13.7]} 47. Bf6
{[%clk 0:00:11.2]} 47... Rg6 {[%clk 0:00:14]} 48. Bh8 {[%clk 0:00:10]} 48... Rg2
{[%clk 0:00:09.3]} 49. Ra1 {[%clk 0:00:09.7]} 49... Nd4 {[%clk 0:00:08.5]} 50.
Bf6 {[%clk 0:00:09.5]} 50... Re2# {[%clk 0:00:07.8]} 0-1

[Event "Late-Titled-Tuesday-Blitz-January-30-2024"]
[Site "Chess.com"]
[Date "2024.01.30"]
[Round "6"]
[White "tarno17"]
[Black "Herman-NY"]
[Result "0-1"]
[WhiteElo "2103"]
[BlackElo "2488"]
[TimeControl "180+1"]
[EndTime "15:07:58 PST"]
[Termination "Herman-NY won by checkmate"]

1. e4 {[%clk 0:03:00.9]} 1... e5 {[%clk 0:02:58.4]} 2. Nf3 {[%clk 0:03:00.6]}
2... Nc6 {[%clk 0:02:56.4]} 3. Bb5 {[%clk 0:03:01.1]} 3... a6 {[%clk 0:02:56.4]}
4. Ba4 {[%clk 0:03:00.4]} 4... Nf6 {[%clk 0:02:56.5]} 5. O-O {[%clk 0:03:00.1]}
5... Be7 {[%clk 0:02:56.4]} 6. Re1 {[%clk 0:02:56.1]} 6... b5 {[%clk 0:02:56.3]}
7. Bb3 {[%clk 0:02:55.9]} 7... O-O {[%clk 0:02:56.4]} 8. d4 {[%clk 0:02:35.3]}
8... d6 {[%clk 0:02:53.8]} 9. h3 {[%clk 0:02:30.4]} 9... Nxd4 {[%clk 0:02:35]}
10. Nxd4 {[%clk 0:02:29.6]} 10... exd4 {[%clk 0:02:35.9]} 11. a4 {[%clk
0:01:54.7]} 11... Bb7 {[%clk 0:02:07.1]} 12. Nd2 {[%clk 0:01:10.9]} 12... c5
{[%clk 0:02:00.2]} 13. c4 {[%clk 0:01:00.4]} 13... b4 {[%clk 0:01:22.7]} 14. Bc2
{[%clk 0:00:57.4]} 14... a5 {[%clk 0:01:20]} 15. b3 {[%clk 0:00:54.7]} 15... Re8
{[%clk 0:01:19.5]} 16. Nf1 {[%clk 0:00:47.5]} 16... Bf8 {[%clk 0:01:19.5]} 17.
Ng3 {[%clk 0:00:45.8]} 17... g6 {[%clk 0:01:19.9]} 18. Bf4 {[%clk 0:00:31.3]}
18... Bg7 {[%clk 0:01:13.9]} 19. Qf3 {[%clk 0:00:29.9]} 19... h6 {[%clk
0:01:07.5]} 20. h4 {[%clk 0:00:15.1]} 20... h5 {[%clk 0:00:54.1]} 21. Bg5 {[%clk
0:00:14.6]} 21... Re5 {[%clk 0:00:51.2]} 22. Bd3 {[%clk 0:00:12.3]} 22... Qe7
{[%clk 0:00:47.7]} 23. Re2 {[%clk 0:00:12.2]} 23... Re8 {[%clk 0:00:47.2]} 24.
Rae1 {[%clk 0:00:12.7]} 24... Rxg5 {[%clk 0:00:36.4]} 25. hxg5 {[%clk
0:00:12.7]} 25... Nh7 {[%clk 0:00:37]} 26. Qf4 {[%clk 0:00:08.3]} 26... Be5
{[%clk 0:00:34.5]} 27. Qd2 {[%clk 0:00:07.7]} 27... Qxg5 {[%clk 0:00:33.2]} 28.
Kh2 {[%clk 0:00:04.4]} 28... Qh4+ {[%clk 0:00:27.7]} 29. Kg1 {[%clk 0:00:04.3]}
29... Ng5 {[%clk 0:00:18.9]} 30. Rf1 {[%clk 0:00:02.5]} 30... Bf4 {[%clk
0:00:18.8]} 31. Qd1 {[%clk 0:00:02.5]} 31... Re5 {[%clk 0:00:15.2]} 32. Bc2
{[%clk 0:00:02.6]} 32... Bxg3 {[%clk 0:00:10.3]} 33. fxg3 {[%clk 0:00:02.8]}
33... Qxg3 {[%clk 0:00:11.2]} 34. Qe1 {[%clk 0:00:03.2]} 34... Qg4 {[%clk
0:00:08.2]} 35. Qf2 {[%clk 0:00:03.4]} 35... Nh3+ {[%clk 0:00:06.4]} 36. Kh1
{[%clk 0:00:02.7]} 36... Nxf2+ {[%clk 0:00:07.3]} 37. Rexf2 {[%clk 0:00:03.3]}
37... Re7 {[%clk 0:00:06.6]} 38. Kg1 {[%clk 0:00:03.9]} 38... Bxe4 {[%clk
0:00:06.6]} 39. Bxe4 {[%clk 0:00:03.8]} 39... Qxe4 {[%clk 0:00:07.5]} 40. Rf4
{[%clk 0:00:04.2]} 40... Qe3+ {[%clk 0:00:08]} 41. Kh2 {[%clk 0:00:04.8]} 41...
d3 {[%clk 0:00:08.6]} 42. R1f3 {[%clk 0:00:04.3]} 42... Qe2 {[%clk 0:00:08.8]}
43. Rf2 {[%clk 0:00:03.9]} 43... d2 {[%clk 0:00:07.7]} 44. Rxe2 {[%clk
0:00:03.8]} 44... Rxe2 {[%clk 0:00:08.6]} 45. Rf6 {[%clk 0:00:03]} 45... d1=Q
{[%clk 0:00:08.6]} 46. Rf3 {[%clk 0:00:02.1]} 46... Qd4 {[%clk 0:00:08.6]} 47.
Rg3 {[%clk 0:00:01.8]} 47... Qf4 {[%clk 0:00:07.1]} 48. Kh3 {[%clk 0:00:01.1]}
48... Qxg3+ {[%clk 0:00:07]} 49. Kxg3 {[%clk 0:00:01.4]} 49... Re3+ {[%clk
0:00:07.9]} 50. Kh4 {[%clk 0:00:01.7]} 50... Rxb3 {[%clk 0:00:08.8]} 51. g3
{[%clk 0:00:01.7]} 51... Rc3 {[%clk 0:00:08.8]} 52. g4 {[%clk 0:00:02.3]} 52...
Rxc4 {[%clk 0:00:08.9]} 53. Kg5 {[%clk 0:00:03.1]} 53... Kg7 {[%clk 0:00:08]}
54. gxh5 {[%clk 0:00:03]} 54... f6# {[%clk 0:00:08.6]} 0-1